[Event "GER-ch Youth-U18w 2023"]
[Site "Willingen"]
[Date "2023.05.30"]
[Round "4.10"]
[White "Foltin, Alica"]
[Black "Zoellner, Bente"]
[Result "0-1"]
[Annotator "NA RC"]
[ECO "A05"]
[WhiteElo "1540"]
[BlackElo "1700"]
[PlyCount "50"]
[EventDate "2022.06.05"]
[EventType "swiss"]
[EventRounds "9"]
[EventCountry "GER"]
[SourceTitle "playchess.com"]
[Source "ChessBase"]
[SourceQuality "1"]
[TimeControl "40/4500+30:900+30"]

1. e4 {[%emt 0:00:00]} c5 {[%emt 0:00:00]} 2. Nf3 {[%emt 0:00:00]} Nc6 {[%emt 0:00:00]} 3. d3 {[%emt 0:00:00]} Nf6 {[%emt 0:00:00]} 4. g3 {[%emt 0:00:00]} g6 {[%emt 0:00:00]} 5. Bg2 {[%emt 0:00:00]} Bg7 {[%emt 0:00:00]} 6. O-O {[%emt 0:00:00]} O-O {[%emt 0:00:00]} 7. c3 {[%emt 0:00:00]} d6 {[%emt 0:00:00]} 8. Re1 {[%emt 0:00:00]} Rb8 {[%emt 0:00:00]} 9. h3 {[%emt 0:00:00]} b5 {[%emt 0:00:00]} 10. d4 {[%emt 0:00:00]} b4 {[%emt 0:00:37]} 11. Bf4 {[%emt 0:00:00]} bxc3 {[%emt 0:06:16]} 12. bxc3 {[%emt 0:00:00]} Qa5 {[%emt 0:05:13]} 13. e5 {[%emt 0:01:26]} Nh5 {[%emt 0:05:00]} 14. Bd2 {[%emt 0:03:40]} f5 {[%emt 0:06:38]} 15. Nh2 {[%emt 0:00:30]} Qb6 {[%emt 0:02:44]} 16. Qc1 {[%emt 0:13:47]} dxe5 {[%emt 0:06:59]} 17. dxe5 {[%emt 0:02:17]} Nxe5 {[%emt 0:02:05]} 18. Qc2 {[%emt 0:09:16]} Qd6 {[%emt 0:05:18]} 19. Bg5 {[%emt 0:15:32]} Bf6 {[%emt 0:04:11]} 20. Rd1 {[%emt 0:02:51]} Qc7 {[%emt 0:02:00]} 21. Be3 {[%emt 0:01:32]} Bb7 {[%emt 0:03:52]} 22. Bd5+ {[%emt 0:00:54]} Bxd5 {[%emt 0:02:02]} 23. Rxd5 {[%emt 0:00:10]} Nd7 {[%emt 0:01:35]} 24. Nd2 {[%emt 0:02:25]} e6 {[%emt 0:01:01]} 25. Rd3 {[%emt 0:00:55]} Ne5 {[%emt 0:01:34]} 0-1

[Event "GER-ch Youth-U18w 2023"]
[Site "Willingen"]
[Date "2023.05.30"]
[Round "4.12"]
[White "Avetyan, Manan"]
[Black "Gossing, Marie-Sophie"]
[Result "1/2-1/2"]
[Annotator "NA RC"]
[ECO "C42"]
[WhiteElo "1368"]
[BlackElo "1395"]
[PlyCount "79"]
[EventDate "2022.06.05"]
[EventType "swiss"]
[EventRounds "9"]
[EventCountry "GER"]
[SourceTitle "playchess.com"]
[Source "ChessBase"]
[SourceQuality "1"]
[TimeControl "40/4500+30:900+30"]

1. e4 {[%emt 0:00:00]} e5 {[%emt 0:00:00]} 2. Nf3 {[%emt 0:00:00]} Nf6 {[%emt 0:00:00]} 3. Nxe5 {[%emt 0:00:00]} d6 {[%emt 0:00:00]} 4. Nxf7 {[%emt 0:00:00]} Kxf7 {[%emt 0:00:00]} 5. d4 {[%emt 0:00:00]} Nxe4 {[%emt 0:00:00]} 6. Qh5+ {[%emt 0:00:00]} g6 {[%emt 0:00:00]} 7. Qd5+ {[%emt 0:00:00]} Ke8 {[%emt 0:01:49]} 8. Qxe4+ {[%emt 0:00:00]} Qe7 {[%emt 0:00:09]} 9. Qxe7+ {[%emt 0:04:44]} Bxe7 {[%emt 0:00:12]} 10. Bc4 {[%emt 0:00:32]} Bf5 {[%emt 0:02:05]} 11. c3 {[%emt 0:00:50]} Nc6 {[%emt 0:05:28]} 12. Bh6 {[%emt 0:09:37]} Bf8 {[%emt 0:03:49]} 13. Bf4 {[%emt 0:03:21]} Kd7 {[%emt 0:06:31]} 14. O-O {[%emt 0:02:03]} Re8 {[%emt 0:06:33]} 15. Nd2 {[%emt 0:02:17]} Na5 {[%emt 0:06:57]} 16. Rfe1 {[%emt 0:12:52]} Nxc4 {[%emt 0:01:21]} 17. Nxc4 {[%emt 0:01:39]} Bg7 {[%emt 0:01:53]} 18. Ne3 {[%emt 0:10:06]} Be6 {[%emt 0:04:35]} 19. d5 {[%emt 0:03:17]} Bf7 {[%emt 0:00:39]} 20. Rad1 {[%emt 0:02:34]} h6 {[%emt 0:08:42]} 21. Kf1 {[%emt 0:06:25]} g5 {[%emt 0:03:19]} 22. Nf5 {[%emt 0:06:01]} Rxe1+ {[%emt 0:00:34]} 23. Rxe1 {[%emt 0:06:59]} Bf6 {[%emt 0:00:29]} 24. Bd2 {[%emt 0:03:55]} Bxd5 {[%emt 0:00:27]} 25. b3 {[%emt 0:00:16]} Be5 {[%emt 0:09:27]} 26. Ne3 {[%emt 0:02:50]} Be6 {[%emt 0:01:41]} 27. h3 {[%emt 0:01:52]} Rf8 {[%emt 0:04:21]} 28. Ng4 {[%emt 0:03:04]} Bg3 {[%emt 0:04:56]} 29. Re2 {[%emt 0:00:34]} h5 {[%emt 0:03:58]} 30. Kg1 {[%emt 0:00:54]} hxg4 {[%emt 0:01:15]} 31. fxg3 gxh3 {[%emt 0:00:45]} 32. Bxg5 {[%emt 0:00:33]} hxg2 {[%emt 0:01:18]} 33. Kxg2 {[%emt 0:00:20]} Bg4 {[%emt 0:01:41]} 34. Rf2 {[%emt 0:00:34]} Rxf2+ {[%emt 0:02:11]} 35. Kxf2 {[%emt 0:01:19]} Ke6 {[%emt 0:00:40]} 36. Ke3 {[%emt 0:00:44]} Bf5 {[%emt 0:01:33]} 37. Kf4 {[%emt 0:00:00]} c5 {[%emt 0:00:00]} 38. Bd8 {[%emt 0:00:00]} Bb1 {[%emt 0:00:00]} 39. g4 {[%emt 0:00:00]} Bc2 {[%emt 0:00:00]} 40. a3 1/2-1/2

[Event "GER-ch Youth-U18w 2023"]
[Site "Willingen"]
[Date "2023.05.31"]
[Round "5.1"]
[White "Groeschel, Karoline"]
[Black "Albayrak, Nese Pinar"]
[Result "1/2-1/2"]
[Annotator "NA RC"]
[ECO "C88"]
[WhiteElo "1892"]
[BlackElo "1763"]
[PlyCount "59"]
[EventDate "2022.06.05"]
[EventType "swiss"]
[EventRounds "9"]
[EventCountry "GER"]
[SourceTitle "playchess.com"]
[Source "ChessBase"]
[SourceQuality "1"]
[TimeControl "40/4500+30:900+30"]

1. e4 {[%emt 0:00:00]} e5 {[%emt 0:00:00]} 2. Nf3 {[%emt 0:00:00]} Nc6 {[%emt 0:00:00]} 3. Bb5 {[%emt 0:00:00]} a6 {[%emt 0:00:00]} 4. Ba4 {[%emt 0:00:00]} Nf6 {[%emt 0:00:00]} 5. O-O {[%emt 0:00:00]} Be7 {[%emt 0:00:00]} 6. Re1 {[%emt 0:00:00]} b5 {[%emt 0:00:00]} 7. Bb3 {[%emt 0:00:00]} O-O {[%emt 0:00:00]} 8. a4 {[%emt 0:00:00] is currently scoring better than 8.c3.} Bb7 {[%emt 0:00:00]} 9. d3 {[%emt 0:00:00]} d6 {[%emt 0:00:00]} 10. h3 {[%emt 0:00:00]} Na5 {[%emt 0:00:00]} 11. Ba2 {[%emt 0:00:00]} b4 {[%emt 0:00:00]} 12. Nbd2 {[%emt 0:00:00]} c5 {[%emt 0:01:31]} 13. c3 {[%emt 0:00:00]} Rb8 {[%emt 0:05:05]} 14. Nc4 {[%emt 0:01:02] [#]} Ba8 $146 {[%emt 0:06:42]} ({Predecessor:} 14... Nc6 15. Bd2 Bc8 16. d4 cxd4 17. cxd4 Nxd4 18. Nxd4 exd4 19. e5 Ne8 20. exd6 Bxd6 21. Nxd6 Qxd6 {½-½ Achermann,J (2237)-Dezan,A (2192) ARG-SUI 2011 [12]}) 15. Nh2 {[%emt 0:16:33]} Qc7 {[%emt 0:05:12]} (15... Nxc4 $11 {deserves consideration.} 16. Bxc4 a5) 16. Nf1 {[%emt 0:09:56]} ({White should try} 16. Nxa5 $14 Qxa5 17. Bd2) 16... Rfd8 {[%emt 0:04:25]} (16... Nxc4 $11 {was preferrable.} 17. Bxc4 d5 18. exd5 Nxd5) 17. Nfe3 {[%emt 0:11:51]} d5 {[%emt 0:16:56]} 18. Nxd5 {[%emt 0:06:13]} Nxd5 {[%emt 0:07:30]} 19. exd5 {[%emt 0:00:43]} Bxd5 {[%emt 0:03:01]} 20. Nxa5 {[%emt 0:02:51]} Bxa2 {[%emt 0:05:27]} 21. Rxa2 {[%emt 0:01:08]} Qxa5 {[%emt 0:00:17]} 22. Rxe5 {[%emt 0:02:53]} Bf6 {[%emt 0:02:22]} 23. cxb4 {[%emt 0:03:02]} Qxb4 {[%emt 0:03:16]} 24. Re2 {[%emt 0:06:38]} c4 {[%emt 0:05:31]} 25. Bd2 {[%emt 0:07:59]} Rxd3 {[%emt 0:11:22]} 26. Qe1 {[%emt 0:00:16]} Qf8 {[%emt 0:00:57]} 27. Bc3 {[%emt 0:03:11]} (27. a5 $11) 27... Bxc3 {[%emt 0:03:29]} 28. bxc3 {[%emt 0:00:32]} Rbd8 {[%emt 0:01:02]} 29. Ra1 {[%emt 0:00:08]} h6 {[%emt 0:01:24]} 30. Rb1 $11 {[%emt 0:01:51]} 1/2-1/2

[Event "GER-ch Youth-U18w 2023"]
[Site "Willingen"]
[Date "2023.05.31"]
[Round "5.2"]
[White "Buchholz, Maja Patricia"]
[Black "Heutling, Elina"]
[Result "0-1"]
[Annotator "NA RC"]
[ECO "C90"]
[WhiteElo "1899"]
[BlackElo "1878"]
[PlyCount "81"]
[EventDate "2022.06.05"]
[EventType "swiss"]
[EventRounds "9"]
[EventCountry "GER"]
[SourceTitle "playchess.com"]
[Source "ChessBase"]
[SourceQuality "1"]
[TimeControl "40/4500+30:900+30"]

1. e4 {[%emt 0:00:00]} e5 {[%emt 0:00:00]} 2. Nf3 {[%emt 0:00:00]} Nc6 {[%emt 0:00:00]} 3. Bc4 {[%emt 0:00:00]} Nf6 {[%emt 0:00:00]} 4. d3 {[%emt 0:00:00]} Be7 {[%emt 0:00:00]} 5. c3 {[%emt 0:00:00]} O-O {[%emt 0:00:00]} 6. O-O {[%emt 0:00:00]} d6 {[%emt 0:00:00]} 7. Re1 {[%emt 0:00:00]} Na5 {[%emt 0:00:00]} 8. Bb5 {[%emt 0:00:00]} a6 {[%emt 0:00:00]} 9. Ba4 {[%emt 0:00:00]} b5 {[%emt 0:00:00]} 10. Bc2 {[%emt 0:00:00]} c5 {[%emt 0:00:00]} 11. Nbd2 {[%emt 0:00:00]} h6 {[%emt 0:03:28]} 12. Nf1 {[%emt 0:02:11]} Qc7 {[%emt 0:09:49]} 13. Ne3 {[%emt 0:08:38]} Be6 {[%emt 0:07:47]} 14. Qe2 {[%emt 0:12:00]} Nc6 {[%emt 0:06:40]} 15. Bb3 {[%emt 0:07:01]} Rfe8 {[%emt 0:06:51]} 16. Bd5 {[%emt 0:05:16]} Bf8 {[%emt 0:02:58]} 17. Nh4 {[%emt 0:10:20]} Bxd5 {[%emt 0:04:03]} 18. Nxd5 {[%emt 0:10:41]} Nxd5 {[%emt 0:01:10]} 19. exd5 {[%emt 0:00:05]} Ne7 {[%emt 0:03:38]} 20. c4 {[%emt 0:02:41]} Qd7 {[%emt 0:09:28]} 21. Kh1 {[%emt 0:09:55]} g5 {[%emt 0:12:45]} 22. Nf3 {[%emt 0:02:49]} Ng6 {[%emt 0:03:29]} 23. h4 {[%emt 0:11:15]} g4 {[%emt 0:03:03]} ({Resist} 23... Nxh4 24. Nxh4 gxh4 25. Qh5 $14) 24. Nh2 {[%emt 0:00:37]} f5 {[%emt 0:01:30]} ({But not} 24... Nxh4 25. Nxg4 (25. Qxg4+ Qxg4 26. Nxg4 Be7 $11) 25... Qf5 26. Qe4 $14 (26. Nxh6+ Bxh6 27. Bxh6 Qg6 $17) (26. Bxh6 Qg6 $11)) 25. g3 {[%emt 0:00:26]} e4 {[%emt 0:02:34]} 26. Be3 {[%emt 0:01:39]} Bg7 {[%emt 0:00:44]} 27. Rab1 {[%emt 0:01:40]} exd3 {[%emt 0:00:27]} 28. Qd2 {[%emt 0:00:57]} h5 {[%emt 0:06:26]} 29. cxb5 {[%emt 0:00:46]} (29. b3 $142) 29... Qxb5 {[%emt 0:00:57]} (29... axb5 $2 {perishes.} 30. Qxd3 Rxa2 31. Qb3 $19) 30. Bh6 {[%emt 0:00:35]} c4 {[%emt 0:00:46]} 31. Qg5 $19 {[%emt 0:00:21]} (31. Bxg7 {is a better defense.} Kxg7 32. Qc3+ Kh7 33. Qd4) 31... Qxd5+ {[%emt 0:00:20]} 32. Kg1 {[%emt 0:00:15]} Kh7 {[%emt 0:01:44]} 33. Bxg7 {[%emt 0:00:30]} Kxg7 {[%emt 0:00:03]} 34. Nf1 {[%emt 0:00:52]} Re5 {[%emt 0:01:00]} 35. Rxe5 {[%emt 0:00:37]} Qxe5 {[%emt 0:00:17]} 36. Ne3 {[%emt 0:00:10]} Rf8 {[%emt 0:00:34]} 37. Nxc4 {[%emt 0:00:17]} Qe2 {[%emt 0:00:38]} 38. Ne3 {[%emt 0:00:36]} d2 {[%emt 0:00:25]} 39. Rd1 {[%emt 0:00:10]} f4 {[%emt 0:00:45]} 40. gxf4 {[%emt 0:00:17]} Rxf4 {[%emt 0:00:19]} (40... Qe1+ $142 41. Kh2 Rxf4) 41. Rf1 {[%emt 0:00:00]} 0-1

[Event "GER-ch Youth-U18w 2023"]
[Site "Willingen"]
[Date "2023.05.31"]
[Round "5.3"]
[White "Kalina, Lena"]
[Black "Wagner, Margarethe"]
[Result "0-1"]
[Annotator "NA RC"]
[ECO "E35"]
[WhiteElo "1776"]
[BlackElo "1831"]
[PlyCount "118"]
[EventDate "2022.06.05"]
[EventType "swiss"]
[EventRounds "9"]
[EventCountry "GER"]
[SourceTitle "playchess.com"]
[Source "ChessBase"]
[SourceQuality "1"]
[TimeControl "40/4500+30:900+30"]

1. c4 {[%emt 0:00:00]} e6 {[%emt 0:00:00]} 2. Nc3 {[%emt 0:00:00]} d5 {[%emt 0:00:00]} 3. d4 {[%emt 0:00:00]} Nf6 {[%emt 0:00:00]} 4. cxd5 {[%emt 0:00:00]} exd5 {[%emt 0:00:00]} 5. Bg5 {[%emt 0:00:00]} Bb4 {[%emt 0:00:00]} 6. Qc2 {[%emt 0:00:00]} h6 {[%emt 0:00:00]} 7. Bh4 {[%emt 0:00:00] 7.Bh4 is better than 7.Bxf6.} g5 {[%emt 0:00:00]} 8. Bg3 {[%emt 0:00:00]} Ne4 {[%emt 0:00:00]} 9. a3 {[%emt 0:00:00]} Bxc3+ {[%emt 0:00:00]} 10. bxc3 {[%emt 0:00:00]} h5 {[%emt 0:02:48] [#]} 11. f3 $146 {[%emt 0:03:57]} ({Predecessor:} 11. Be5 Rh6 12. f3 Nd6 13. e3 Nc6 14. Bxd6 Qxd6 15. Bb5 Qe7 16. Ne2 Qxe3 17. Qd2 Qxd2+ 18. Kxd2 {0-1 Aytekin,M (1899)-Rzayev,B (2424) Corum op 2016 (8)}) 11... Nxg3 {[%emt 0:02:52]} 12. hxg3 {[%emt 0:00:08]} Qe7 {[%emt 0:00:17]} 13. e4 {[%emt 0:09:42]} dxe4 {[%emt 0:06:43]} 14. Qxe4 {[%emt 0:05:52]} c6 {[%emt 0:23:07]} 15. Qxe7+ {[%emt 0:04:11]} Kxe7 {[%emt 0:00:00]} 16. g4 {[%emt 0:04:35]} h4 {[%emt 0:00:00]} 17. Bd3 {[%emt 0:03:00]} Be6 {[%emt 0:04:00]} 18. Kd2 {[%emt 0:05:07]} Nd7 {[%emt 0:04:13]} 19. Nh3 {[%emt 0:02:32]} Rhg8 {[%emt 0:06:48]} 20. Rhe1 {[%emt 0:03:42]} Kd6 {[%emt 0:05:15]} 21. c4 {[%emt 0:09:14]} b6 {[%emt 0:02:10]} 22. Kc3 {[%emt 0:02:10]} Rae8 {[%emt 0:08:04]} 23. Re2 {[%emt 0:03:56]} f6 {[%emt 0:06:34]} 24. Nf2 {[%emt 0:05:26]} Kc7 {[%emt 0:02:02]} 25. a4 {[%emt 0:04:26]} Bf7 {[%emt 0:01:04]} 26. Rxe8 {[%emt 0:02:41]} Rxe8 {[%emt 0:00:13] [#]} 27. Be4 {[%emt 0:00:46]} ({Better is} 27. a5 $1 $16 {[%cal Ra5b6]}) 27... a5 {[%emt 0:01:58]} 28. Rb1 {[%emt 0:04:30]} Nf8 {[%emt 0:02:32]} 29. Nd3 {[%emt 0:04:51]} Bg6 {[%emt 0:00:11]} 30. Re1 {[%emt 0:00:58]} Bf7 {[%emt 0:02:21]} 31. Rd1 {[%emt 0:04:33]} Bg6 {[%emt 0:00:57]} 32. Nf2 {[%emt 0:01:57]} Bf7 {[%emt 0:00:25]} 33. Nd3 {[%emt 0:02:03]} Bg6 {[%emt 0:00:08]} 34. Nf2 {[%emt 0:00:03]} Bf7 {[%emt 0:00:24]} 35. Rd2 {[%emt 0:01:33]} Ne6 {[%emt 0:03:11]} 36. Nd1 {[%emt 0:00:55]} Nf4 {[%emt 0:01:00]} 37. d5 {[%emt 0:00:32]} c5 {[%emt 0:03:05]} 38. Ne3 {[%emt 0:00:26]} Bg6 {[%emt 0:00:19]} 39. Nf5 {[%emt 0:00:35]} Bxf5 {[%emt 0:00:31]} 40. Bxf5 {[%emt 0:00:31]} Re3+ {[%emt 0:00:28]} 41. Kb2 {[%emt 0:00:00]} Kd6 {[%emt 0:00:00]} 42. Be4 {[%emt 0:03:41]} Re1 {[%emt 0:00:00]} 43. Kc3 {[%emt 0:01:01]} Rc1+ {[%emt 0:00:00]} 44. Bc2 {[%emt 0:02:37]} Rg1 {[%emt 0:00:00]} 45. Bd3 {[%emt 0:01:35]} Nxg2 {[%emt 0:01:34]} 46. Re2 {[%emt 0:05:38]} Nf4 {[%emt 0:03:17]} 47. Re8 {[%emt 0:02:25]} h3 {[%emt 0:03:15]} 48. Rh8 {[%emt 0:00:32]} Ra1 {[%emt 0:00:20]} 49. Bc2 {[%emt 0:00:38]} Re1 {[%emt 0:01:40]} 50. Be4 {[%emt 0:01:00]} Re3+ {[%emt 0:00:39]} 51. Kd2 {[%emt 0:00:26]} Re2+ {[%emt 0:00:18]} 52. Kd1 {[%emt 0:00:07]} h2 {[%emt 0:00:19]} 53. Rh6 {[%emt 0:01:05]} Rg2 {[%emt 0:00:38]} 54. Rxf6+ {[%emt 0:00:38]} Ke7 {[%emt 0:00:07]} 55. Rh6 {[%emt 0:00:52]} Rg1+ {[%emt 0:00:14]} 56. Kd2 {[%emt 0:00:08]} h1=Q {[%emt 0:00:08]} 57. d6+ {[%emt 0:00:46]} Kd8 {[%emt 0:00:09]} 58. Rxh1 {[%emt 0:00:23]} Rxh1 {[%emt 0:00:08]} 59. Bf5 {[%emt 0:01:00]} Ra1 $19 {[%emt 0:00:48]} 0-1

[Event "GER-ch Youth-U18w 2023"]
[Site "Willingen"]
[Date "2023.05.31"]
[Round "5.4"]
[White "Peglau, Mirjam"]
[Black "Hafermann, Lara"]
[Result "1-0"]
[Annotator "RC"]
[ECO "E05"]
[WhiteElo "1932"]
[BlackElo "1498"]
[PlyCount "57"]
[EventDate "2022.06.05"]
[EventType "swiss"]
[EventRounds "9"]
[EventCountry "GER"]
[SourceTitle "playchess.com"]
[Source "ChessBase"]
[SourceQuality "1"]
[TimeControl "40/4500+30:900+30"]

1. Nf3 {[%emt 0:00:00]} Nf6 {[%emt 0:00:00]} 2. g3 {[%emt 0:00:00]} e6 {[%emt 0:00:00]} 3. Bg2 {[%emt 0:00:00]} d5 {[%emt 0:00:00]} 4. d4 {[%emt 0:00:00]} Be7 {[%emt 0:00:00]} 5. O-O {[%emt 0:00:00]} O-O {[%emt 0:00:00]} 6. c4 {[%emt 0:00:00]} dxc4 {[%emt 0:00:00]} 7. Qa4 {[%emt 0:00:00]} a6 {[%emt 0:00:00]} 8. Qxc4 {[%emt 0:00:00]} b5 {[%emt 0:00:00]} 9. Qc2 {[%emt 0:00:00]} Bb7 {[%emt 0:00:00]} 10. Bg5 {[%emt 0:07:29]} Nc6 {[%emt 0:00:41]} 11. e3 {[%emt 0:02:22]} Nb4 {[%emt 0:08:01]} 12. Qc1 {[%emt 0:09:08]} Rc8 {[%emt 0:01:46]} 13. a3 {[%emt 0:06:58]} Nbd5 {[%emt 0:00:41]} 14. b4 {[%emt 0:01:22]} Nb6 {[%emt 0:02:52]} 15. Nbd2 {[%emt 0:02:13]} Nfd7 {[%emt 0:17:13]} 16. Bxe7 {[%emt 0:02:08]} Qxe7 {[%emt 0:00:02]} 17. Rd1 {[%emt 0:09:16]} Rfd8 {[%emt 0:07:27]} 18. Qc2 {[%emt 0:03:10]} c6 {[%emt 0:12:03]} 19. Rac1 {[%emt 0:01:33]} Nf6 {[%emt 0:06:18]} 20. Ne5 {[%emt 0:02:09]} Nbd5 {[%emt 0:00:44]} 21. Nb3 {[%emt 0:00:54]} Nd7 {[%emt 0:01:36]} 22. Nd3 {[%emt 0:01:45]} e5 {[%emt 0:02:37]} 23. dxe5 {[%emt 0:01:36]} Nxe5 {[%emt 0:00:24]} 24. Na5 {[%emt 0:01:56]} Nxd3 {[%emt 0:01:50]} 25. Rxd3 {[%emt 0:00:16]} g6 {[%emt 0:09:26]} 26. Qd2 {[%emt 0:02:42]} Rd7 {[%emt 0:10:14]} 27. Rd1 {[%emt 0:01:57]} Rcd8 {[%emt 0:00:47]} 28. Nxb7 {[%emt 0:00:56]} Rxb7 {[%emt 0:00:08]} 29. e4 {[%emt 0:00:10]} 1-0

[Event "GER-ch Youth-U18w 2023"]
[Site "Willingen"]
[Date "2023.05.31"]
[Round "5.5"]
[White "Reuter, Elisa"]
[Black "Adelhardt, Lisa"]
[Result "1/2-1/2"]
[Annotator "RC"]
[ECO "B40"]
[WhiteElo "1944"]
[BlackElo "1656"]
[PlyCount "35"]
[EventDate "2022.06.05"]
[EventType "swiss"]
[EventRounds "9"]
[EventCountry "GER"]
[SourceTitle "playchess.com"]
[Source "ChessBase"]
[SourceQuality "1"]
[TimeControl "40/4500+30:900+30"]

1. e4 {[%emt 0:00:00]} c5 {[%emt 0:00:00]} 2. Nf3 {[%emt 0:00:00]} e6 {[%emt 0:00:00]} 3. d4 {[%emt 0:00:00]} cxd4 {[%emt 0:00:00]} 4. Nxd4 {[%emt 0:00:00]} Nf6 {[%emt 0:00:00]} 5. Bd3 {[%emt 0:00:00]} Nc6 {[%emt 0:00:00]} 6. Nxc6 {[%emt 0:00:00]} bxc6 {[%emt 0:00:00]} 7. Qe2 {[%emt 0:00:00]} d5 {[%emt 0:00:00]} 8. Nd2 {[%emt 0:00:00]} Bc5 {[%emt 0:03:22]} 9. O-O {[%emt 0:00:50]} O-O {[%emt 0:01:42]} 10. Nb3 {[%emt 0:11:08]} Bb6 {[%emt 0:00:52]} 11. Bg5 {[%emt 0:02:57]} Qc7 {[%emt 0:10:26]} 12. Bxf6 {[%emt 0:11:31]} gxf6 {[%emt 0:00:15]} 13. Qg4+ {[%emt 0:07:52]} Kh8 {[%emt 0:00:15]} 14. Qh4 {[%emt 0:00:14]} Qe5 {[%emt 0:01:10]} 15. exd5 {[%emt 0:07:00]} f5 {[%emt 0:03:18]} 16. dxe6 {[%emt 0:02:30]} fxe6 {[%emt 0:01:42]} 17. c3 {[%emt 0:11:28]} Rg8 {[%emt 0:08:49]} 18. Rfe1 {[%emt 0:03:33]} 1/2-1/2

[Event "GER-ch Youth-U18w 2023"]
[Site "Willingen"]
[Date "2023.05.31"]
[Round "5.6"]
[White "Zoellner, Bente"]
[Black "Doll, Rebecca"]
[Result "1/2-1/2"]
[Annotator "RC"]
[ECO "D36"]
[WhiteElo "1700"]
[BlackElo "1918"]
[PlyCount "84"]
[EventDate "2022.06.05"]
[EventType "swiss"]
[EventRounds "9"]
[EventCountry "GER"]
[SourceTitle "playchess.com"]
[Source "ChessBase"]
[SourceQuality "1"]
[TimeControl "40/4500+30:900+30"]

1. d4 {[%emt 0:00:00]} d5 {[%emt 0:00:00]} 2. c4 {[%emt 0:00:00]} e6 {[%emt 0:00:00]} 3. Nc3 {[%emt 0:00:00]} Nf6 {[%emt 0:00:00]} 4. cxd5 {[%emt 0:00:00]} exd5 {[%emt 0:00:00]} 5. Bg5 {[%emt 0:00:00]} Nbd7 {[%emt 0:00:00]} 6. e3 {[%emt 0:00:00]} Be7 {[%emt 0:00:00]} 7. Bd3 {[%emt 0:00:00]} c6 {[%emt 0:00:00]} 8. Nge2 {[%emt 0:00:00]} O-O {[%emt 0:00:00]} 9. Qc2 {[%emt 0:00:00]} Re8 {[%emt 0:00:00]} 10. O-O {[%emt 0:00:00]} Nf8 {[%emt 0:00:00]} 11. a3 {[%emt 0:00:00]} b5 {[%emt 0:03:18]} 12. Kh1 {[%emt 0:00:40]} g6 {[%emt 0:05:40]} 13. f3 {[%emt 0:05:42]} Ne6 {[%emt 0:00:25]} 14. Bh4 {[%emt 0:00:48]} Bb7 {[%emt 0:02:35]} 15. Rad1 {[%emt 0:01:47]} Rc8 {[%emt 0:11:06]} 16. b4 {[%emt 0:03:36]} a5 {[%emt 0:00:54]} 17. Qb3 {[%emt 0:01:21]} axb4 {[%emt 0:11:57]} 18. axb4 {[%emt 0:00:19]} Ra8 {[%emt 0:01:26]} 19. Ra1 {[%emt 0:03:41]} Qd6 {[%emt 0:03:11]} 20. Rxa8 {[%emt 0:03:40]} Rxa8 {[%emt 0:00:40]} 21. Rb1 {[%emt 0:00:31]} Kg7 {[%emt 0:03:15]} 22. Bg3 {[%emt 0:02:31]} Qd8 {[%emt 0:02:13]} 23. Be5 {[%emt 0:01:49]} Bd6 {[%emt 0:03:49]} 24. e4 {[%emt 0:05:01]} dxe4 {[%emt 0:00:49]} 25. Nxe4 {[%emt 0:01:26]} Bxe5 {[%emt 0:00:51]} 26. dxe5 {[%emt 0:00:32]} Nxe4 {[%emt 0:04:24]} 27. Bxe4 {[%emt 0:02:02]} Qd2 {[%emt 0:04:16]} 28. Qd3 {[%emt 0:02:10]} Rd8 {[%emt 0:06:38]} 29. Qxd2 {[%emt 0:01:52]} Rxd2 {[%emt 0:00:05]} 30. Nc3 {[%emt 0:02:23]} Nd4 {[%emt 0:00:23]} 31. Rd1 {[%emt 0:02:50]} Rxd1+ {[%emt 0:03:20]} 32. Nxd1 {[%emt 0:01:56]} Bc8 {[%emt 0:05:02]} 33. Kg1 {[%emt 0:01:22]} Bf5 {[%emt 0:04:32]} 34. Bxf5 {[%emt 0:00:30]} gxf5 {[%emt 0:01:11]} 35. Nb2 {[%emt 0:03:46]} f6 {[%emt 0:01:24]} 36. exf6+ {[%emt 0:01:34]} Kxf6 {[%emt 0:00:05]} 37. Kf2 {[%emt 0:01:03]} Ke5 {[%emt 0:04:25]} 38. Nd3+ {[%emt 0:01:14]} Kd5 {[%emt 0:00:46]} 39. Ke3 {[%emt 0:03:53]} Nb3 {[%emt 0:04:06]} 40. Kf4 {[%emt 0:13:32]} Kd4 {[%emt 0:01:48]} 41. Ne5 {[%emt 0:16:40]} c5 {[%emt 0:00:00]} 42. bxc5 {[%emt 0:00:00]} Nxc5 {[%emt 0:00:00]} 1/2-1/2

[Event "GER-ch Youth-U18w 2023"]
[Site "Willingen"]
[Date "2023.05.31"]
[Round "5.7"]
[White "Cordes, Jule"]
[Black "Derling, Charlotte"]
[Result "1-0"]
[Annotator "NA RC"]
[ECO "E90"]
[WhiteElo "1744"]
[BlackElo "1664"]
[PlyCount "69"]
[EventDate "2022.06.05"]
[EventType "swiss"]
[EventRounds "9"]
[EventCountry "GER"]
[SourceTitle "playchess.com"]
[Source "ChessBase"]
[SourceQuality "1"]
[TimeControl "40/4500+30:900+30"]

1. d4 {[%emt 0:00:00]} Nf6 {[%emt 0:00:00]} 2. c4 {[%emt 0:00:00]} g6 {[%emt 0:00:00]} 3. Nc3 {[%emt 0:00:00]} Bg7 {[%emt 0:00:00]} 4. Nf3 {[%emt 0:00:00]} O-O {[%emt 0:00:00]} 5. Bg5 {[%emt 0:00:00]} c5 {[%emt 0:00:00]} 6. d5 {[%emt 0:00:00]} d6 {[%emt 0:00:00]} 7. e4 {[%emt 0:00:00]} h6 {[%emt 0:00:00]} 8. Bh4 {[%emt 0:00:59]} Qa5 {[%emt 0:00:00]} 9. Nd2 {[%emt 0:04:18]} Na6 {[%emt 0:18:16]} 10. Be2 {[%emt 0:04:35]} Bd7 {[%emt 0:03:22]} 11. O-O {[%emt 0:03:31]} Rab8 {[%emt 0:06:11]} 12. a4 {[%emt 0:17:05]} Nb4 {[%emt 0:06:52]} 13. f4 {[%emt 0:09:17]} a6 {[%emt 0:02:20]} 14. e5 {[%emt 0:07:40]} dxe5 {[%emt 0:02:23]} 15. fxe5 {[%emt 0:02:50]} Nh7 {[%emt 0:01:52]} 16. Bxe7 {[%emt 0:02:26]} Rfe8 {[%emt 0:01:11]} 17. Nb3 {[%emt 0:03:24]} Qb6 {[%emt 0:13:53]} 18. Bxc5 {[%emt 0:02:47]} Qd8 {[%emt 0:01:10]} 19. e6 {[%emt 0:14:07]} fxe6 {[%emt 0:06:16]} 20. dxe6 {[%emt 0:00:02]} Bxe6 {[%emt 0:08:53]} 21. Qxd8 {[%emt 0:01:30]} Rexd8 {[%emt 0:01:00]} 22. Bxb4 {[%emt 0:00:31]} Rbc8 {[%emt 0:00:33]} 23. Rad1 {[%emt 0:04:09]} Rxd1 {[%emt 0:04:51]} 24. Rxd1 {[%emt 0:00:01]} Bxc4 {[%emt 0:01:17]} 25. Bxc4+ {[%emt 0:00:14]} Rxc4 {[%emt 0:00:06]} 26. Rd8+ {[%emt 0:00:11]} Nf8 {[%emt 0:02:02]} 27. Ba3 {[%emt 0:04:12]} Kf7 {[%emt 0:02:09]} 28. Bxf8 {[%emt 0:02:02]} Bxf8 {[%emt 0:00:15]} 29. Rd7+ {[%emt 0:00:18]} Kg8 {[%emt 0:01:25]} 30. Rxb7 {[%emt 0:00:34]} Rc6 {[%emt 0:01:32]} 31. a5 {[%emt 0:03:03]} Bg7 {[%emt 0:00:50]} 32. Rb6 {[%emt 0:00:23]} Rc4 {[%emt 0:01:28]} 33. Rxa6 {[%emt 0:00:46]} Rb4 {[%emt 0:00:12]} 34. Rb6 {[%emt 0:00:30]} Rc4 {[%emt 0:01:15]} 35. a6 {[%emt 0:00:29]} 1-0